[Event "Titled Tuesday Blitz January 17 Early 2023"]
[White "Rustemov, Alexander"]
[Black "Lymar, Vladislav"]
[WhiteFideId "4119002"]
[BlackFideId "14162180"]
[WhiteElo "2525"]
[BlackElo "2119"]
[Result "1-0"]
[Round "04"]
[TimeControl "180+2"]
[Date "2023.01.17"]
[WhiteClock "0:00:06"]
[BlackClock "0:00:01"]

1. d4 {[%clk 0:03:00]}  d5 {[%clk 0:02:59]} 2. c4 {[%clk 0:03:00]}  e6 {[%clk 0:03:00]} 3. Nc3 {[%clk 0:03:00]}  c5 {[%clk 0:03:01]} 4. cxd5 {[%clk 0:02:59]}  exd5 {[%clk 0:03:02]} 5. Nf3 {[%clk 0:02:58]}  Nc6 {[%clk 0:03:02]} 6. g3 {[%clk 0:02:57]}  Nf6 {[%clk 0:03:02]} 7. Bg2 {[%clk 0:02:57]}  Be7 {[%clk 0:03:03]} 8. O-O {[%clk 0:02:58]}  O-O {[%clk 0:03:03]} 9. Bg5 {[%clk 0:02:58]}  c4 {[%clk 0:03:03]} 10. e3 {[%clk 0:02:55]}  Be6 {[%clk 0:03:00]} 11. Nd2 {[%clk 0:02:41]}  Qa5 {[%clk 0:02:41]} 12. a3 {[%clk 0:02:27]}  Rfd8 {[%clk 0:02:32]} 13. b4 {[%clk 0:02:27]}  Qc7 {[%clk 0:02:22]} 14. b5 {[%clk 0:02:16]}  Na5 {[%clk 0:02:18]} 15. Qc2 {[%clk 0:02:15]}  Rac8 {[%clk 0:01:54]} 16. Rfc1 {[%clk 0:02:11]}  Qd7 {[%clk 0:01:33]} 17. a4 {[%clk 0:02:02]}  a6 {[%clk 0:01:29]} 18. Qd1 {[%clk 0:01:56]}  h6 {[%clk 0:01:26]} 19. Bxf6 {[%clk 0:01:56]}  Bxf6 {[%clk 0:01:26]} 20. Rcb1 {[%clk 0:01:43]}  Rb8 {[%clk 0:01:04]} 21. Rb2 {[%clk 0:01:41]}  Be7 {[%clk 0:00:57]} 22. h4 {[%clk 0:01:29]}  Qe8 {[%clk 0:00:54]} 23. Qb1 {[%clk 0:01:27]}  Qf8 {[%clk 0:00:53]} 24. Qc2 {[%clk 0:01:19]}  Ba3 {[%clk 0:00:52]} 25. Rbb1 {[%clk 0:01:19]}  Bb4 {[%clk 0:00:51]} 26. Qb2 {[%clk 0:01:17]}  Be7 {[%clk 0:00:45]} 27. Kh2 {[%clk 0:01:10]}  g5 {[%clk 0:00:30]} 28. Nf3 {[%clk 0:01:01]}  Nb3 {[%clk 0:00:27]} 29. Ra2 {[%clk 0:01:01]}  f6 {[%clk 0:00:19]} 30. Rh1 {[%clk 0:00:58]}  axb5 {[%clk 0:00:16]} 31. Nxb5 {[%clk 0:00:53]}  Bd7 {[%clk 0:00:13]} 32. Nd2 {[%clk 0:00:50]}  Nxd2 {[%clk 0:00:09]} 33. Qxd2 {[%clk 0:00:50]}  Bc6 {[%clk 0:00:09]} 34. hxg5 {[%clk 0:00:46]}  hxg5 {[%clk 0:00:08]} 35. Kg1 {[%clk 0:00:46]}  Ra8 {[%clk 0:00:08]} 36. Nc3 {[%clk 0:00:42]}  Bb4 {[%clk 0:00:07]} 37. Qc2 {[%clk 0:00:41]}  Qf7 {[%clk 0:00:08]} 38. Bf3 {[%clk 0:00:26]}  f5 {[%clk 0:00:07]} 39. g4 {[%clk 0:00:21]}  Bxc3 {[%clk 0:00:05]} 40. Qxc3 {[%clk 0:00:21]}  Rf8 {[%clk 0:00:05]} 41. Rh5 {[%clk 0:00:17]}  Qg6 {[%clk 0:00:04]} 42. Kg2 {[%clk 0:00:15]}  Kg7 {[%clk 0:00:04]} 43. Ra1 {[%clk 0:00:14]}  fxg4 {[%clk 0:00:04]} 44. Bxg4 {[%clk 0:00:14]}  Qe4+ {[%clk 0:00:05]} 45. f3 {[%clk 0:00:14]}  Qg6 {[%clk 0:00:05]} 46. Rah1 {[%clk 0:00:14]}  Rh8 {[%clk 0:00:06]} 47. Qb4 {[%clk 0:00:14]}  Qf6 {[%clk 0:00:04]} 48. a5 {[%clk 0:00:10]}  Rxh5 {[%clk 0:00:05]} 49. Rxh5 {[%clk 0:00:10]}  Re8 {[%clk 0:00:04]} 50. Qb6 {[%clk 0:00:11]}  Rxe3 {[%clk 0:00:03]} 51. Kf2 {[%clk 0:00:11]}  Qe7 {[%clk 0:00:03]} 52. f4 {[%clk 0:00:09]}  gxf4 {[%clk 0:00:02]} 53. Bf3 {[%clk 0:00:08]}  Re1 {[%clk 0:00:02]} 54. Kg2 {[%clk 0:00:06]}  Rd1 {[%clk 0:00:02]} 55. Re5 {[%clk 0:00:06]}  Qf6 {[%clk 0:00:02]} 56. Qc7+ {[%clk 0:00:06]}  Kg8 {[%clk 0:00:01]} 57. Qb8+ {[%clk 0:00:05]}  Kg7 {[%clk 0:00:01]} 58. Qc7+ {[%clk 0:00:05]}  Kg8 {[%clk 0:00:01]} 59. Qb8+ {[%clk 0:00:05]}  Kh7 {[%clk 0:00:02]} 60. Rh5+ {[%clk 0:00:03]}  Kg6 {[%clk 0:00:02]} 61. Qg8+ {[%clk 0:00:03]}  Qg7 {[%clk 0:00:02]} 62. Rg5+ {[%clk 0:00:04]}  Kxg5 {[%clk 0:00:03]} 63. Qxg7+ {[%clk 0:00:05]}  Kf5 {[%clk 0:00:04]} 64. Qf7+ {[%clk 0:00:04]}  Kg5 {[%clk 0:00:04]} 65. Qe7+ {[%clk 0:00:04]}  Kf5 {[%clk 0:00:05]} 66. Qe5+ {[%clk 0:00:05]}  Kg6 {[%clk 0:00:05]} 67. Bxd5 {[%clk 0:00:05]}  Rd2+ {[%clk 0:00:05]} 68. Kf3 {[%clk 0:00:05]}  c3 {[%clk 0:00:04]} 69. Kxf4 {[%clk 0:00:05]}  c2 {[%clk 0:00:04]} 70. Qf5+ {[%clk 0:00:05]}  Kg7 {[%clk 0:00:04]} 71. Qg5+ {[%clk 0:00:05]}  Kf8 {[%clk 0:00:04]} 72. Qf6+ {[%clk 0:00:05]}  Ke8 {[%clk 0:00:04]} 73. Qe6+ {[%clk 0:00:05]}  Kd8 {[%clk 0:00:03]} 74. Qd6+ {[%clk 0:00:05]}  Ke8 {[%clk 0:00:03]} 75. Qb8+ {[%clk 0:00:05]}  Kd7 {[%clk 0:00:03]} 76. Bxc6+ {[%clk 0:00:05]}  bxc6 {[%clk 0:00:03]} 77. Qb2 {[%clk 0:00:04]}  Rf2+ {[%clk 0:00:02]} 78. Ke3 {[%clk 0:00:04]}  Rh2 {[%clk 0:00:02]} 79. Qc1 {[%clk 0:00:05]}  Rg2 {[%clk 0:00:02]} 80. Kd3 {[%clk 0:00:05]}  Kc7 {[%clk 0:00:02]} 81. Kc4 {[%clk 0:00:05]}  Kb7 {[%clk 0:00:02]} 82. Qe3 {[%clk 0:00:05]}  Ka6 {[%clk 0:00:01]} 83. Kb3 {[%clk 0:00:06]}  Kxa5 {[%clk 0:00:01]} 84. Kb2 {[%clk 0:00:06]} 1-0


[Site "https://www.chess.com"]

[Event "Titled Tuesday Blitz January 17 Early 2023"]
[White "Ilkhomi, Jaloliddin"]
[Black "Concio, Michael Jr."]
[WhiteFideId "14700948"]
[BlackFideId "5217873"]
[WhiteElo "1997"]
[BlackElo "2395"]
[Result "0-1"]
[Round "04"]
[TimeControl "180+2"]
[Date "2023.01.17"]
[WhiteClock "0:00:39"]
[BlackClock "0:01:37"]

1. Nf3 {[%clk 0:03:00]}  Nf6 {[%clk 0:02:57]} 2. c4 {[%clk 0:02:59]}  c5 {[%clk 0:02:57]} 3. Nc3 {[%clk 0:02:59]}  d5 {[%clk 0:02:56]} 4. cxd5 {[%clk 0:02:51]}  Nxd5 {[%clk 0:02:57]} 5. Nxd5 {[%clk 0:02:40]}  Qxd5 {[%clk 0:02:56]} 6. d4 {[%clk 0:02:40]}  Nc6 {[%clk 0:02:52]} 7. dxc5 {[%clk 0:02:30]}  Qxd1+ {[%clk 0:02:48]} 8. Kxd1 {[%clk 0:02:29]}  e5 {[%clk 0:02:49]} 9. e4 {[%clk 0:02:23]}  Bxc5 {[%clk 0:02:48]} 10. Bb5 {[%clk 0:02:22]}  f6 {[%clk 0:02:47]} 11. Ke2 {[%clk 0:02:21]}  Bd7 {[%clk 0:02:45]} 12. Rd1 {[%clk 0:02:08]}  Ke7 {[%clk 0:02:45]} 13. Be3 {[%clk 0:01:54]}  Bxe3 {[%clk 0:02:44]} 14. Kxe3 {[%clk 0:01:52]}  Rhd8 {[%clk 0:02:23]} 15. a3 {[%clk 0:01:50]}  Nd4 {[%clk 0:02:18]} 16. Bd3 {[%clk 0:01:39]}  Ba4 {[%clk 0:02:01]} 17. Rdc1 {[%clk 0:01:27]}  Nb3 {[%clk 0:02:00]} 18. Rc7+ {[%clk 0:01:27]}  Kd6 {[%clk 0:02:00]} 19. Rc4 {[%clk 0:01:23]}  b5 {[%clk 0:01:58]} 20. Rxa4 {[%clk 0:01:11]}  bxa4 {[%clk 0:01:56]} 21. Rd1 {[%clk 0:01:11]}  Ke7 {[%clk 0:01:56]} 22. Be2 {[%clk 0:01:06]}  Rxd1 {[%clk 0:01:55]} 23. Bxd1 {[%clk 0:01:07]}  Rc8 {[%clk 0:01:51]} 24. Nd2 {[%clk 0:01:05]}  Nc5 {[%clk 0:01:44]} 25. f3 {[%clk 0:00:58]}  Rb8 {[%clk 0:01:43]} 26. Nc4 {[%clk 0:00:57]}  Rd8 {[%clk 0:01:43]} 27. Bc2 {[%clk 0:00:56]}  Nb3 {[%clk 0:01:43]} 28. Bxb3 {[%clk 0:00:50]}  axb3 {[%clk 0:01:43]} 29. Nd2 {[%clk 0:00:51]}  Rc8 {[%clk 0:01:41]} 30. Kd3 {[%clk 0:00:45]}  Rc2 {[%clk 0:01:41]} 31. Nxb3 {[%clk 0:00:41]}  Rxg2 {[%clk 0:01:40]} 32. Na5 {[%clk 0:00:41]}  Rxb2 {[%clk 0:01:38]} 33. Nc6+ {[%clk 0:00:41]}  Kd7 {[%clk 0:01:37]} 34. Nxa7 {[%clk 0:00:39]}  Rb7 {[%clk 0:01:37]} 0-1


[Site "https://www.chess.com"]

[Event "Titled Tuesday Blitz January 17 Early 2023"]
[White "Al-Tarboush, Ward"]
[Black "Sychev, Klementy"]
[WhiteFideId "7601450"]
[BlackFideId "4114060"]
[WhiteElo "2256"]
[BlackElo "2547"]
[Result "1/2-1/2"]
[Round "04"]
[TimeControl "180+2"]
[Date "2023.01.17"]
[WhiteClock "0:00:49"]
[BlackClock "0:00:04"]

1. e4 {[%clk 0:03:00]}  e5 {[%clk 0:02:59]} 2. Nf3 {[%clk 0:03:01]}  Nc6 {[%clk 0:03:00]} 3. Bb5 {[%clk 0:03:01]}  a6 {[%clk 0:03:00]} 4. Ba4 {[%clk 0:03:01]}  b5 {[%clk 0:03:00]} 5. Bb3 {[%clk 0:03:01]}  Na5 {[%clk 0:03:01]} 6. O-O {[%clk 0:03:01]}  d6 {[%clk 0:03:01]} 7. d4 {[%clk 0:03:00]}  exd4 {[%clk 0:03:02]} 8. Nxd4 {[%clk 0:03:01]}  Bb7 {[%clk 0:03:02]} 9. Bd2 {[%clk 0:02:56]}  Nxb3 {[%clk 0:03:00]} 10. axb3 {[%clk 0:02:49]}  g6 {[%clk 0:02:49]} 11. Bc3 {[%clk 0:02:47]}  Nf6 {[%clk 0:02:48]} 12. Qf3 {[%clk 0:02:36]}  Bg7 {[%clk 0:02:15]} 13. Nd2 {[%clk 0:02:31]}  b4 {[%clk 0:02:10]} 14. Bxb4 {[%clk 0:02:29]}  c5 {[%clk 0:02:10]} 15. Ba5 {[%clk 0:02:29]}  Qe7 {[%clk 0:02:04]} 16. Ne2 {[%clk 0:02:27]}  Nxe4 {[%clk 0:02:03]} 17. Nxe4 {[%clk 0:02:22]}  Bxe4 {[%clk 0:02:02]} 18. Qg3 {[%clk 0:02:12]}  O-O {[%clk 0:01:37]} 19. Nc3 {[%clk 0:02:09]}  Bxc2 {[%clk 0:01:31]} 20. Nd5 {[%clk 0:02:08]}  Qe5 {[%clk 0:01:27]} 21. Qxe5 {[%clk 0:01:51]}  Bxe5 {[%clk 0:01:28]} 22. Nb6 {[%clk 0:01:52]}  Ra7 {[%clk 0:01:17]} 23. Nc4 {[%clk 0:01:49]}  Rb8 {[%clk 0:01:12]} 24. Nxe5 {[%clk 0:01:45]}  dxe5 {[%clk 0:01:11]} 25. Rfc1 {[%clk 0:01:45]}  Bxb3 {[%clk 0:01:05]} 26. Rxc5 {[%clk 0:01:45]}  f6 {[%clk 0:01:05]} 27. Bc3 {[%clk 0:01:45]}  Rd8 {[%clk 0:00:56]} 28. Rc6 {[%clk 0:01:44]}  Kf7 {[%clk 0:00:50]} 29. h4 {[%clk 0:01:44]}  Rda8 {[%clk 0:00:43]} 30. g4 {[%clk 0:01:43]}  Be6 {[%clk 0:00:24]} 31. g5 {[%clk 0:01:43]}  fxg5 {[%clk 0:00:24]} 32. hxg5 {[%clk 0:01:43]}  Rc8 {[%clk 0:00:21]} 33. Rcxa6 {[%clk 0:01:38]}  Rd7 {[%clk 0:00:12]} 34. Bxe5 {[%clk 0:01:35]}  Rc5 {[%clk 0:00:12]} 35. Bf6 {[%clk 0:01:35]}  h6 {[%clk 0:00:12]} 36. Re1 {[%clk 0:01:26]}  Bc4 {[%clk 0:00:08]} 37. Rb6 {[%clk 0:01:18]}  hxg5 {[%clk 0:00:08]} 38. Bc3 {[%clk 0:01:18]}  Rf5 {[%clk 0:00:03]} 39. Rb8 {[%clk 0:01:16]}  Bd5 {[%clk 0:00:02]} 40. Ree8 {[%clk 0:01:15]}  Bc6 {[%clk 0:00:01]} 41. Rf8+ {[%clk 0:01:15]}  Ke6 {[%clk 0:00:02]} 42. Rbe8+ {[%clk 0:01:11]}  Kd5 {[%clk 0:00:02]} 43. Rxf5+ {[%clk 0:01:10]}  gxf5 {[%clk 0:00:03]} 44. Re5+ {[%clk 0:01:10]}  Kc4 {[%clk 0:00:04]} 45. Rxf5 {[%clk 0:01:01]}  Rd1+ {[%clk 0:00:04]} 46. Kh2 {[%clk 0:01:02]}  Rh1+ {[%clk 0:00:04]} 47. Kg3 {[%clk 0:01:02]}  Rg1+ {[%clk 0:00:05]} 48. Kh2 {[%clk 0:01:00]}  Rh1+ {[%clk 0:00:04]} 49. Kg3 {[%clk 0:01:00]}  Rg1+ {[%clk 0:00:04]} 50. Kh3 {[%clk 0:00:51]}  Rh1+ {[%clk 0:00:04]} 51. Kg3 {[%clk 0:00:49]} 1/2-1/2


[Site "https://www.chess.com"]

[Event "Titled Tuesday Blitz January 17 Early 2023"]
[White "Krivonosov, Oleg"]
[Black "Schekachikhin, Maksim"]
[WhiteFideId "11600349"]
[BlackFideId "24177830"]
[WhiteElo "2359"]
[BlackElo "2371"]
[Result "0-1"]
[Round "04"]
[TimeControl "180+2"]
[Date "2023.01.17"]
[WhiteClock "0:00:27"]
[BlackClock "0:00:13"]

1. Nf3 {[%clk 0:03:00]}  Nf6 {[%clk 0:02:57]} 2. c4 {[%clk 0:02:59]}  g6 {[%clk 0:02:57]} 3. Nc3 {[%clk 0:02:59]}  Bg7 {[%clk 0:02:57]} 4. e4 {[%clk 0:02:58]}  O-O {[%clk 0:02:57]} 5. d4 {[%clk 0:02:59]}  d6 {[%clk 0:02:57]} 6. Be2 {[%clk 0:02:58]}  e5 {[%clk 0:02:57]} 7. dxe5 {[%clk 0:02:59]}  dxe5 {[%clk 0:02:57]} 8. Qxd8 {[%clk 0:02:58]}  Rxd8 {[%clk 0:02:56]} 9. Bg5 {[%clk 0:02:59]}  Re8 {[%clk 0:02:53]} 10. Nd5 {[%clk 0:02:57]}  Nxd5 {[%clk 0:02:49]} 11. cxd5 {[%clk 0:02:58]}  c6 {[%clk 0:02:49]} 12. Bc4 {[%clk 0:02:58]}  cxd5 {[%clk 0:02:46]} 13. Bxd5 {[%clk 0:02:59]}  Nc6 {[%clk 0:02:47]} 14. O-O-O {[%clk 0:02:58]}  Be6 {[%clk 0:02:46]} 15. Bxe6 {[%clk 0:02:57]}  Rxe6 {[%clk 0:02:46]} 16. Rd7 {[%clk 0:02:56]}  f6 {[%clk 0:02:40]} 17. Be3 {[%clk 0:02:54]}  Re7 {[%clk 0:02:40]} 18. Rhd1 {[%clk 0:02:53]}  Rae8 {[%clk 0:02:13]} 19. Kb1 {[%clk 0:02:46]}  Bf8 {[%clk 0:02:11]} 20. a3 {[%clk 0:02:37]}  Rxd7 {[%clk 0:02:04]} 21. Rxd7 {[%clk 0:02:36]}  Re7 {[%clk 0:02:04]} 22. Rxe7 {[%clk 0:02:35]}  Bxe7 {[%clk 0:02:05]} 23. Kc2 {[%clk 0:02:36]}  Kf7 {[%clk 0:02:05]} 24. Kd3 {[%clk 0:02:36]}  Ke6 {[%clk 0:02:05]} 25. Kc4 {[%clk 0:02:35]}  a6 {[%clk 0:01:56]} 26. a4 {[%clk 0:02:33]}  b5+ {[%clk 0:01:44]} 27. axb5 {[%clk 0:02:30]}  Na5+ {[%clk 0:01:44]} 28. Kd3 {[%clk 0:02:26]}  axb5 {[%clk 0:01:44]} 29. Nd2 {[%clk 0:02:24]}  Kd7 {[%clk 0:01:35]} 30. f3 {[%clk 0:02:20]}  Kc6 {[%clk 0:01:34]} 31. Nb1 {[%clk 0:02:17]}  Nc4 {[%clk 0:01:29]} 32. Bc1 {[%clk 0:02:12]}  Nb6 {[%clk 0:01:20]} 33. Nc3 {[%clk 0:02:08]}  b4 {[%clk 0:01:19]} 34. Nd1 {[%clk 0:02:04]}  Bc5 {[%clk 0:01:11]} 35. b3 {[%clk 0:02:01]}  Kb5 {[%clk 0:01:07]} 36. Ne3 {[%clk 0:01:54]}  Nd7 {[%clk 0:01:01]} 37. Nd5 {[%clk 0:01:46]}  Bd4 {[%clk 0:01:01]} 38. Bd2 {[%clk 0:01:39]}  Bc5 {[%clk 0:00:54]} 39. h3 {[%clk 0:01:33]}  f5 {[%clk 0:00:47]} 40. exf5 {[%clk 0:01:23]}  gxf5 {[%clk 0:00:47]} 41. g4 {[%clk 0:01:23]}  fxg4 {[%clk 0:00:38]} 42. hxg4 {[%clk 0:01:21]}  Bd6 {[%clk 0:00:33]} 43. Be3 {[%clk 0:01:17]}  Bc5 {[%clk 0:00:32]} 44. Nc7+ {[%clk 0:01:03]}  Kc6 {[%clk 0:00:30]} 45. Ne6 {[%clk 0:01:03]}  Bxe3 {[%clk 0:00:27]} 46. Kxe3 {[%clk 0:01:04]}  Kd6 {[%clk 0:00:24]} 47. Ng5 {[%clk 0:01:02]}  Nc5 {[%clk 0:00:18]} 48. Ne4+ {[%clk 0:01:01]}  Nxe4 {[%clk 0:00:13]} 49. Kxe4 {[%clk 0:01:02]}  Ke6 {[%clk 0:00:13]} 50. g5 {[%clk 0:01:02]}  Kd6 {[%clk 0:00:13]} 51. Kf5 {[%clk 0:00:32]}  Kd5 {[%clk 0:00:13]} 52. Kf6 {[%clk 0:00:33]}  e4 {[%clk 0:00:13]} 53. fxe4+ {[%clk 0:00:30]}  Kxe4 {[%clk 0:00:14]} 54. Kg7 {[%clk 0:00:28]}  Kf5 {[%clk 0:00:14]} 55. Kh6 {[%clk 0:00:27]}  Kg4 {[%clk 0:00:13]} 0-1


[Site "https://www.chess.com"]

[Event "Titled Tuesday Blitz January 17 Early 2023"]
[White "Turzo, Attila"]
[Black "Harshavardhan G B"]
[WhiteFideId "704954"]
[BlackFideId "25059009"]
[WhiteElo "2279"]
[BlackElo "2408"]
[Result "0-1"]
[Round "04"]
[TimeControl "180+2"]
[Date "2023.01.17"]
[WhiteClock "0:00:11"]
[BlackClock "0:00:05"]

1. d4 {[%clk 0:03:00]}  d5 {[%clk 0:02:58]} 2. Bf4 {[%clk 0:03:01]}  Nf6 {[%clk 0:02:56]} 3. e3 {[%clk 0:03:02]}  c5 {[%clk 0:02:53]} 4. c3 {[%clk 0:03:00]}  Nc6 {[%clk 0:02:52]} 5. Nd2 {[%clk 0:03:00]}  Qb6 {[%clk 0:02:52]} 6. Qc2 {[%clk 0:02:55]}  g6 {[%clk 0:02:50]} 7. Bd3 {[%clk 0:02:46]}  Bg7 {[%clk 0:02:43]} 8. Ngf3 {[%clk 0:02:46]}  O-O {[%clk 0:02:42]} 9. O-O {[%clk 0:02:47]}  c4 {[%clk 0:02:38]} 10. Be2 {[%clk 0:02:47]}  Bf5 {[%clk 0:02:37]} 11. Qc1 {[%clk 0:02:47]}  Qd8 {[%clk 0:02:34]} 12. b4 {[%clk 0:02:39]}  b5 {[%clk 0:02:25]} 13. a4 {[%clk 0:02:39]}  a6 {[%clk 0:02:21]} 14. Qb2 {[%clk 0:02:15]}  Nd7 {[%clk 0:02:19]} 15. axb5 {[%clk 0:01:58]}  axb5 {[%clk 0:02:17]} 16. Rxa8 {[%clk 0:01:59]}  Qxa8 {[%clk 0:02:16]} 17. Ra1 {[%clk 0:02:00]}  Qb7 {[%clk 0:02:16]} 18. Ra3 {[%clk 0:01:57]}  Nb6 {[%clk 0:02:07]} 19. Bd1 {[%clk 0:01:47]}  h6 {[%clk 0:01:53]} 20. Ne5 {[%clk 0:01:44]}  g5 {[%clk 0:01:39]} 21. Bg3 {[%clk 0:01:37]}  Nxe5 {[%clk 0:01:38]} 22. dxe5 {[%clk 0:01:26]}  Nd7 {[%clk 0:01:37]} 23. Nf3 {[%clk 0:01:24]}  Be4 {[%clk 0:01:26]} 24. Nd4 {[%clk 0:01:09]}  Nxe5 {[%clk 0:01:18]} 25. Ra5 {[%clk 0:01:05]}  Nd3 {[%clk 0:01:15]} 26. Qa1 {[%clk 0:01:03]}  e5 {[%clk 0:00:41]} 27. Nxb5 {[%clk 0:00:57]}  Qd7 {[%clk 0:00:39]} 28. Be2 {[%clk 0:00:41]}  d4 {[%clk 0:00:33]} 29. exd4 {[%clk 0:00:35]}  exd4 {[%clk 0:00:33]} 30. Nxd4 {[%clk 0:00:33]}  Bxd4 {[%clk 0:00:27]} 31. cxd4 {[%clk 0:00:34]}  Nxb4 {[%clk 0:00:16]} 32. Bxc4 {[%clk 0:00:34]}  Bxg2 {[%clk 0:00:11]} 33. Bxf7+ {[%clk 0:00:19]}  Qxf7 {[%clk 0:00:11]} 34. Kxg2 {[%clk 0:00:20]}  Nd3 {[%clk 0:00:09]} 35. Qc3 {[%clk 0:00:18]}  Nxf2 {[%clk 0:00:08]} 36. Ra2 {[%clk 0:00:13]}  Qxa2 {[%clk 0:00:05]} 37. d5 {[%clk 0:00:12]}  Qxd5+ {[%clk 0:00:05]} 38. Kg1 {[%clk 0:00:11]}  Nh3# {[%clk 0:00:05]} 0-1


[Site "https://www.chess.com"]

[Event "Titled Tuesday Blitz January 17 Early 2023"]
[White "Mikhailovsky, Vladimir"]
[Black "Ibadov, Dashgyn"]
[WhiteFideId "34105414"]
[BlackFideId "24107514"]
[WhiteElo "2215"]
[BlackElo "2391"]
[Result "1-0"]
[Round "04"]
[TimeControl "180+2"]
[Date "2023.01.17"]
[WhiteClock "0:00:05"]
[BlackClock "0:00:01"]

1. d4 {[%clk 0:03:00]}  d5 {[%clk 0:02:57]} 2. c4 {[%clk 0:02:58]}  e6 {[%clk 0:02:56]} 3. Nc3 {[%clk 0:02:57]}  c6 {[%clk 0:02:54]} 4. e4 {[%clk 0:02:56]}  Bb4 {[%clk 0:02:54]} 5. cxd5 {[%clk 0:02:49]}  exd5 {[%clk 0:02:54]} 6. e5 {[%clk 0:02:50]}  Ne7 {[%clk 0:02:53]} 7. Bd3 {[%clk 0:02:50]}  c5 {[%clk 0:02:53]} 8. Ne2 {[%clk 0:02:50]}  Nbc6 {[%clk 0:02:53]} 9. a3 {[%clk 0:02:46]}  Ba5 {[%clk 0:02:44]} 10. dxc5 {[%clk 0:02:11]}  Nxe5 {[%clk 0:02:42]} 11. O-O {[%clk 0:02:07]}  O-O {[%clk 0:02:30]} 12. Bf4 {[%clk 0:01:54]}  N7g6 {[%clk 0:02:10]} 13. Bxg6 {[%clk 0:01:34]}  Nxg6 {[%clk 0:02:10]} 14. Bd6 {[%clk 0:01:17]}  Re8 {[%clk 0:02:04]} 15. Qxd5 {[%clk 0:00:36]}  Be6 {[%clk 0:01:25]} 16. Qd4 {[%clk 0:00:35]}  Qg5 {[%clk 0:01:20]} 17. Ng3 {[%clk 0:00:27]}  Bd8 {[%clk 0:01:16]} 18. Rfe1 {[%clk 0:00:24]}  Bf6 {[%clk 0:01:16]} 19. Qe3 {[%clk 0:00:22]}  Qg4 {[%clk 0:01:11]} 20. Rad1 {[%clk 0:00:21]}  h6 {[%clk 0:01:04]} 21. h3 {[%clk 0:00:21]}  Qc4 {[%clk 0:01:04]} 22. Nge4 {[%clk 0:00:17]}  Bh4 {[%clk 0:00:56]} 23. Qd3 {[%clk 0:00:16]}  Qb3 {[%clk 0:00:52]} 24. Qb5 {[%clk 0:00:17]}  Kh7 {[%clk 0:00:28]} 25. Bg3 {[%clk 0:00:15]}  Bxg3 {[%clk 0:00:21]} 26. fxg3 {[%clk 0:00:13]}  a6 {[%clk 0:00:12]} 27. Qxb3 {[%clk 0:00:11]}  Bxb3 {[%clk 0:00:12]} 28. Rc1 {[%clk 0:00:11]}  Rad8 {[%clk 0:00:12]} 29. Nd6 {[%clk 0:00:11]}  Rxe1+ {[%clk 0:00:08]} 30. Rxe1 {[%clk 0:00:12]}  b6 {[%clk 0:00:04]} 31. Nb7 {[%clk 0:00:11]}  Rb8 {[%clk 0:00:03]} 32. c6 {[%clk 0:00:10]}  Be6 {[%clk 0:00:03]} 33. Nd6 {[%clk 0:00:09]}  Ne7 {[%clk 0:00:02]} 34. c7 {[%clk 0:00:08]}  Ra8 {[%clk 0:00:03]} 35. Na4 {[%clk 0:00:08]}  Ra7 {[%clk 0:00:01]} 36. Ne8 {[%clk 0:00:08]}  Nc8 {[%clk 0:00:01]} 37. Rd1 {[%clk 0:00:06]}  b5 {[%clk 0:00:01]} 38. Nc5 {[%clk 0:00:05]}  Bf5 {[%clk 0:00:01]} 39. Rd8 {[%clk 0:00:05]} 1-0


[Site "https://www.chess.com"]

[Event "Titled Tuesday Blitz January 17 Early 2023"]
[White "Mahdavi, Reza"]
[Black "Bagwe Gaurang"]
[WhiteFideId "12595926"]
[BlackFideId "45039895"]
[WhiteElo "2339"]
[BlackElo "2067"]
[Result "1-0"]
[Round "04"]
[TimeControl "180+2"]
[Date "2023.01.17"]
[WhiteClock "0:00:27"]
[BlackClock "0:00:02"]

1. e4 {[%clk 0:03:00]}  c6 {[%clk 0:02:58]} 2. d4 {[%clk 0:03:01]}  d5 {[%clk 0:02:58]} 3. e5 {[%clk 0:03:00]}  c5 {[%clk 0:02:58]} 4. dxc5 {[%clk 0:03:00]}  e6 {[%clk 0:02:55]} 5. Nf3 {[%clk 0:02:34]}  Bxc5 {[%clk 0:02:54]} 6. Bd3 {[%clk 0:02:34]}  b6 {[%clk 0:02:48]} 7. c3 {[%clk 0:02:30]}  Ne7 {[%clk 0:02:46]} 8. b4 {[%clk 0:02:29]}  Nbc6 {[%clk 0:02:34]} 9. bxc5 {[%clk 0:02:23]}  bxc5 {[%clk 0:02:34]} 10. O-O {[%clk 0:02:21]}  O-O {[%clk 0:02:33]} 11. Bf4 {[%clk 0:01:41]}  f6 {[%clk 0:02:21]} 12. exf6 {[%clk 0:01:41]}  gxf6 {[%clk 0:02:21]} 13. Be3 {[%clk 0:01:39]}  Qd6 {[%clk 0:02:17]} 14. Na3 {[%clk 0:01:36]}  a6 {[%clk 0:02:13]} 15. Re1 {[%clk 0:01:33]}  e5 {[%clk 0:02:12]} 16. Nh4 {[%clk 0:01:29]}  f5 {[%clk 0:01:54]} 17. Bg5 {[%clk 0:01:19]}  e4 {[%clk 0:01:19]} 18. Bf1 {[%clk 0:01:11]}  Be6 {[%clk 0:00:40]} 19. g3 {[%clk 0:01:10]}  Ng6 {[%clk 0:00:36]} 20. Qh5 {[%clk 0:01:07]}  Nge5 {[%clk 0:00:27]} 21. Rad1 {[%clk 0:01:01]}  Ra7 {[%clk 0:00:23]} 22. Bf4 {[%clk 0:00:55]}  Qe7 {[%clk 0:00:20]} 23. Nc2 {[%clk 0:00:50]}  Ng4 {[%clk 0:00:20]} 24. h3 {[%clk 0:00:43]}  Nf6 {[%clk 0:00:17]} 25. Qg5+ {[%clk 0:00:43]}  Kh8 {[%clk 0:00:16]} 26. Nxf5 {[%clk 0:00:42]}  Qd8 {[%clk 0:00:15]} 27. Nce3 {[%clk 0:00:36]}  Rg8 {[%clk 0:00:13]} 28. Qh4 {[%clk 0:00:36]}  d4 {[%clk 0:00:13]} 29. cxd4 {[%clk 0:00:36]}  cxd4 {[%clk 0:00:14]} 30. Rc1 {[%clk 0:00:30]}  Nb4 {[%clk 0:00:08]} 31. Be5 {[%clk 0:00:28]}  Rf7 {[%clk 0:00:07]} 32. Nxd4 {[%clk 0:00:28]}  Nxa2 {[%clk 0:00:05]} 33. Nxe6 {[%clk 0:00:28]}  Qe7 {[%clk 0:00:05]} 34. Rc7 {[%clk 0:00:26]}  Qxe6 {[%clk 0:00:03]} 35. Rxf7 {[%clk 0:00:27]}  Qxf7 {[%clk 0:00:02]} 36. Qxf6+ {[%clk 0:00:27]} 1-0


[Site "https://www.chess.com"]